fUSD/lending_fUSD_20240628
["ID","MTS","AMOUNT","RATE_DAILY","PERIOD"]
[330545733,1719561157299,-856.16,0.00021369,2]
[330545734,1719561157308,-539.97,0.00021369,2]
[330545735,1719561157316,-500.0,0.00021369,2]
[330545736,1719561157326,-500.0,0.00021369,2]
[330545737,1719561157335,-1183.51,0.00021369,2]
[330545738,1719561157346,-1199.91,0.00021369,2]
[330545739,1719561157355,-1192.41,0.00021369,2]
[330545740,1719561157364,-2299.92,0.00021369,2]
[330545741,1719561157373,-654.32,0.00021369,2]
[330545742,1719561157383,-500.0,0.00021369,2]
[330545743,1719561157392,-673.16,0.00021369,2]
[330545744,1719561157403,-500.0,0.00021369,2]
[330545745,1719561157412,-1135.59,0.00021369,2]
[330545746,1719561157421,-718.46,0.00021369,2]
[330545747,1719561157430,-500.0,0.00021369,2]
[330545748,1719561157439,-500.0,0.00021369,2]
[330545749,1719561157449,-500.0,0.00021369,2]
[330545750,1719561157458,-500.0,0.00021369,2]
[330545751,1719561157468,-500.0,0.00021369,2]
[330545752,1719561157477,-828.5,0.00021369,2]
[330545753,1719561157487,-483.32929282,0.00021369,2]
[330545754,1719561157495,-500.0,0.00021369,2]
[330545755,1719561157504,-500.0,0.00021369,2]
[330545756,1719561157514,-1470.46,0.00021369,2]
[330545757,1719561157523,-500.0,0.00021369,2]
[330545758,1719561157532,-1942.8,0.00021369,2]
[330545759,1719561157541,-568.18,0.00021369,2]
[330545760,1719561157552,-500.0,0.00021369,2]
[330545761,1719561157561,-500.0,0.00021369,2]
[330545762,1719561157575,-559.8,0.00021369,2]
[330545763,1719561157584,-500.0,0.00021369,2]
[330545764,1719561157594,-500.0,0.00021369,2]
[330545765,1719561157603,-687.15,0.00021369,2]
[330545766,1719561157613,-557.81,0.00021369,2]
[330545767,1719561157622,-267.24215312,0.00021369,2]
[330545768,1719561157632,-1013.31,0.00021369,2]
[330545769,1719561157641,-1313.87,0.00021369,2]
[330545770,1719561157650,-555.71,0.00021369,2]
[330545771,1719561157659,-500.0,0.00021369,2]
[330545772,1719561157669,-1142.83,0.00021369,2]
[330545773,1719561157678,-606.98,0.00021369,2]
[330545774,1719561157687,-500.0,0.00021369,2]
[330545775,1719561157699,-1090.69,0.00021369,2]
[330545776,1719561157709,-500.0,0.00021369,2]
[330545777,1719561157718,-500.0,0.00021369,2]
[330545778,1719561157727,-741.97,0.00021369,2]
[330545779,1719561157736,-500.0,0.00021369,2]
[330545780,1719561157746,-500.0,0.00021369,2]
[330545781,1719561157755,-833.46,0.00021369,2]
[330545782,1719561157764,-858.42,0.00021369,2]
[330545783,1719561157774,-784.18,0.00021369,2]
[330545784,1719561157784,-500.0,0.00021369,2]
[330545785,1719561157794,-676.3,0.00021369,2]
[330545786,1719561157803,-640.7,0.00021369,2]
[330545787,1719561157812,-500.0,0.00021369,2]
[330545788,1719561157822,-547.64,0.00021369,2]
[330545789,1719561157831,-1104.3,0.00021369,2]
[330545790,1719561157839,-1509.32,0.00021369,2]
[330545791,1719561157848,-775.75,0.00021369,2]
[330545792,1719561157862,-500.0,0.00021369,2]
[330545793,1719561157871,-500.0,0.00021369,2]
[330545794,1719561157882,-500.0,0.00021369,2]
[330545795,1719561157893,-774.67,0.00021369,2]
[330545796,1719561157904,-1251.26,0.00021369,2]
[330545797,1719561157914,-1975.28,0.00021369,2]
[330545798,1719561157923,-500.0,0.00021369,2]
[330545799,1719561157932,-704.42,0.00021369,2]
[330545800,1719561157944,-917.85,0.00021369,2]
[330545801,1719561157954,-1651.77,0.00021369,2]
[330545802,1719561157963,-1425.82,0.00021369,2]
[330545803,1719561157972,-500.0,0.00021369,2]
[330545804,1719561157981,-500.0,0.00021369,2]
[330545805,1719561157990,-545.19,0.00021369,2]
[330545806,1719561157999,-500.0,0.00021369,2]
[330545807,1719561158008,-575.69,0.00021369,2]
[330545808,1719561158017,-500.0,0.00021369,2]
[330545809,1719561158026,-998.16,0.00021369,2]
[330545810,1719561158035,-500.0,0.00021369,2]
[330545811,1719561158045,-768.59,0.00021369,2]
[330545812,1719561158054,-586.61,0.00021369,2]
[330545813,1719561158064,-618.73,0.00021369,2]
[330545814,1719561158074,-848.48,0.00021369,2]
[330545815,1719561158083,-2391.81,0.00021369,2]
[330545816,1719561158093,-500.0,0.00021369,2]
[330545817,1719561158103,-764.56,0.00021369,2]
[330545818,1719561158112,-1272.64,0.00021369,2]
[330545819,1719561158122,-688.17,0.00021369,2]
[330545820,1719561158131,-628.0,0.00021369,2]
[330545821,1719561158140,-652.19,0.00021369,2]
[330545822,1719561158150,-500.0,0.00021369,2]
[330545823,1719561158159,-8009.39,0.00021369,2]
[330545824,1719561158167,-1144.92,0.00021369,2]
[330545825,1719561158177,-500.0,0.00021369,2]
[330545826,1719561158186,-500.0,0.00021369,2]
[330545827,1719561158195,-500.0,0.00021369,2]
[330545828,1719561158204,-3067.21,0.00021369,2]
[330545829,1719561158214,-1469.95,0.00021369,2]
[330545830,1719561158223,-937.69,0.00021369,2]
[330545831,1719561158232,-608.87,0.00021369,2]
[330545832,1719561158241,-530.38,0.00021369,2]
[330545833,1719561158251,-2389.09,0.00021369,2]
[330545834,1719561158260,-931.89,0.00021369,2]
[330545835,1719561158269,-698.09,0.00021369,2]
[330545836,1719561158278,-1828.93,0.00021369,2]
[330545837,1719561158287,-500.0,0.00021369,2]
[330545838,1719561158297,-500.0,0.00021369,2]
[330545839,1719561158306,-2237.48,0.00021369,2]
[330545840,1719561158315,-809.41,0.00021369,2]
[330545841,1719561158324,-548.11,0.00021369,2]
[330545842,1719561158334,-1079.6,0.00021369,2]
[330545843,1719561158342,-844.19,0.00021369,2]
[330545844,1719561158351,-1576.09,0.00021369,2]
[330545845,1719561158359,-155.74508908,0.00021369,2]
[330545846,1719561158369,-1489.92,0.00021369,2]
[330545847,1719561158377,-1957.19,0.00021369,2]
[330545848,1719561158386,-912.0,0.00021369,2]
[330545849,1719561158394,-500.0,0.00021369,2]
[330545850,1719561158403,-688.77,0.00021369,2]
[330545851,1719561158411,-2356.49,0.00021369,2]
[330545852,1719561158420,-569.70636103,0.00021369,2]
[330545853,1719561158429,-2130.37,0.00021369,2]
[330545854,1719561158437,-838.95,0.00021369,2]
[330545855,1719561158446,-596.16,0.00021369,2]
[330545856,1719561158454,-1793.14,0.00021369,2]
[330545857,1719561158463,-2016.92,0.00021369,2]
[330545858,1719561158472,-543.6,0.00021369,2]
[330545859,1719561158480,-1344.1,0.00021369,2]
[330545860,1719561158489,-200.0,0.00021369,2]
[330545861,1719561158498,-452.48351329,0.00021369,2]
[330545862,1719561158506,-2804.61,0.00021369,2]
[330545863,1719561158515,-2335.31,0.00021369,2]
[330545864,1719561158524,-2999.18,0.00021369,2]
[330545865,1719561158533,-966.61,0.00021369,2]
[330545866,1719561158542,-1555.99,0.00021369,2]
[330545867,1719561158554,-1299.02,0.00021369,2]
[330545868,1719561158563,-1196.1,0.00021369,2]
[330545869,1719561158575,-1622.54,0.00021369,2]
[330545870,1719561158585,-1982.91,0.00021369,2]
[330545871,1719561158595,-580.04,0.00021369,2]
[330545872,1719561158604,-585.72,0.00021369,2]
[330545873,1719561158614,-1835.49,0.00021369,2]
[330545874,1719561158624,-829.04,0.00021369,2]
[330545875,1719561158634,-500.0,0.00021369,2]
[330545876,1719561158644,-500.0,0.00021369,2]
[330545877,1719561158653,-500.0,0.00021369,2]
[330545878,1719561158663,-500.0,0.00021369,2]
[330545879,1719561158673,-301.33381491,0.00021369,2]
[330545880,1719561158683,-1053.06,0.00021369,2]
[330545881,1719561158693,-500.0,0.00021369,2]
[330545882,1719561158703,-2025.35,0.00021369,2]
[330545883,1719561158713,-926.48,0.00021369,2]
[330545884,1719561158723,-2045.94,0.00021369,2]
[330545885,1719561158733,-500.0,0.00021369,2]
[330545886,1719561158743,-520.99,0.00021369,2]
[330545887,1719561158753,-3299.83,0.00021369,2]
[330545888,1719561158763,-1125.69,0.00021369,2]
[330545889,1719561158773,-652.91,0.00021369,2]
[330545890,1719561158783,-515.76,0.00021369,2]
[330545891,1719561158793,-518.58,0.00021369,2]
[330545892,1719561158804,-1218.63,0.00021369,2]
[330545893,1719561158813,-500.0,0.00021369,2]
[330545894,1719561158823,-764.42,0.00021369,2]
[330545895,1719561158833,-807.73,0.00021369,2]
[330545896,1719561158842,-500.0,0.00021369,2]
[330545897,1719561158854,-500.0,0.00021369,2]
[330545898,1719561158865,-500.0,0.00021369,2]
[330545899,1719561158875,-670.83,0.00021369,2]
[330545900,1719561158885,-500.0,0.00021369,2]
[330545901,1719561158895,-500.0,0.00021369,2]
[330545902,1719561158905,-717.38,0.00021369,2]
[330545903,1719561158915,-1228.76,0.00021369,2]
[330545904,1719561158924,-1190.64,0.00021369,2]
[330545905,1719561158937,-500.0,0.00021369,2]
[330545906,1719561158947,-1204.53,0.00021369,2]
[330545907,1719561158956,-1337.55,0.00021369,2]
[330545908,1719561158966,-500.0,0.00021369,2]
[330545909,1719561158975,-1119.97,0.00021369,2]
[330545910,1719561158984,-500.0,0.00021369,2]
[330545911,1719561158994,-4811.88,0.00021369,2]
[330545912,1719561159003,-4412.5,0.00021369,2]
[330545913,1719561159014,-930.05,0.00021369,2]
[330545914,1719561159025,-1038.25,0.00021369,2]
[330545915,1719561159035,-4473.58,0.00021369,2]
[330545916,1719561159046,-500.0,0.00021369,2]
[330545917,1719561159057,-689.91,0.00021369,2]
[330545918,1719561159067,-500.0,0.00021369,2]
[330545919,1719561159078,-500.0,0.00021369,2]
[330545920,1719561159088,-500.0,0.00021369,2]
[330545921,1719561159100,-816.16,0.00021369,2]
[330545922,1719561159110,-2445.0,0.00021369,2]
[330545923,1719561159121,-500.0,0.00021369,2]
[330545924,1719561159132,-1090.73,0.00021369,2]
[330545925,1719561159142,-1132.58,0.00021369,2]
[330545926,1719561159153,-615.52,0.00021369,2]
[330545927,1719561159164,-1125.15,0.00021369,2]
[330545928,1719561159175,-500.0,0.00021369,2]
[330545929,1719561159185,-2267.1,0.00021369,2]
[330545930,1719561159196,-568.55,0.00021369,2]
[330545931,1719561159207,-500.0,0.00021369,2]
[330545932,1719561159217,-2510.06,0.00021369,2]
[330545933,1719561159227,-724.86,0.00021369,2]
[330545934,1719561159237,-759.55,0.00021369,2]
[330545935,1719561159248,-500.0,0.00021369,2]
[330545936,1719561159258,-783.56,0.00021369,2]
[330545937,1719561159269,-500.0,0.00021369,2]
[330545938,1719561159279,-500.0,0.00021369,2]
[330545939,1719561159289,-1851.28,0.00021369,2]
[330545940,1719561159300,-2477.12,0.00021369,2]
[330545941,1719561159311,-2254.48,0.00021369,2]
[330545942,1719561159321,-500.0,0.00021369,2]
[330545943,1719561159331,-2145.27,0.00021369,2]
[330545944,1719561159341,-3000.49,0.00021369,2]
[330545945,1719561159351,-1339.23,0.00021369,2]
[330545946,1719561159361,-1120.11,0.00021369,2]
[330545947,1719561159372,-1458.45,0.00021369,2]
[330545948,1719561159383,-1203.63,0.00021369,2]
[330545949,1719561159394,-1367.37,0.00021369,2]
[330545950,1719561159404,-17654.57,0.00021369,2]
[330545951,1719561159414,-780.04,0.00021369,2]
[330545952,1719561159424,-500.0,0.00021369,2]
[330545953,1719561159435,-500.0,0.00021369,2]
[330545954,1719561159445,-500.0,0.00021369,2]
[330545955,1719561159456,-2156.78,0.00021369,2]
[330545956,1719561159466,-1038.74,0.00021369,2]
[330545957,1719561159476,-500.0,0.00021369,2]
[330545958,1719561159487,-1281.81,0.00021369,2]
[330545959,1719561159498,-500.0,0.00021369,2]
[330545960,1719561159509,-500.0,0.00021369,2]
[330545961,1719561159520,-707.98,0.00021369,2]
[330545962,1719561159530,-2512.87,0.00021369,2]
[330545963,1719561159541,-500.0,0.00021369,2]
[330545964,1719561159553,-500.0,0.00021369,2]
[330545965,1719561159563,-692.45,0.00021369,2]
[330545966,1719561159574,-1233.32,0.00021369,2]
[330545967,1719561159585,-407.57625413,0.00021369,2]
[330545968,1719561159596,-2622.42,0.00021369,2]
[330545969,1719561159607,-1810.79,0.00021369,2]
[330545970,1719561159618,-1361.17,0.00021369,2]
[330545971,1719561159629,-1142.92,0.00021369,2]
[330545972,1719561159640,-1277.67,0.00021369,2]
[330545973,1719561159651,-169.76494121,0.00021369,2]
[330545974,1719561159662,-1346.62,0.00021369,2]
[330545975,1719561159672,-1322.18,0.00021369,2]
[330545976,1719561159682,-500.0,0.00021369,2]
[330545977,1719561159692,-552.58,0.00021369,2]
[330545978,1719561159704,-863.49,0.00021369,2]
[330545979,1719561159715,-2301.13,0.00021369,2]
[330545980,1719561159726,-4612.82,0.00021369,2]
[330545981,1719561159737,-500.0,0.00021369,2]
[330545982,1719561159747,-1538.87,0.00021369,2]
[330545983,1719561159756,-1624.52,0.00021369,2]
[330545984,1719561159767,-2577.63,0.00021369,2]
[330545985,1719561159777,-500.0,0.00021369,2]
[330545986,1719561159787,-500.0,0.00021369,2]
[330545987,1719561159798,-6138.1,0.00021369,2]
[330545988,1719561159808,-500.0,0.00021369,2]
[330545989,1719561159818,-1509.29,0.00021369,2]
[330545990,1719561159828,-500.0,0.00021369,2]
[330545991,1719561159838,-1002.25,0.00021369,2]
[330545992,1719561159848,-1414.89,0.00021369,2]
[330545993,1719561159864,-1177.0,0.00021369,2]
[330545994,1719561159875,-1548.23,0.00021369,2]
[330545995,1719561159886,-1324.8,0.00021369,2]
[330545996,1719561159897,-1380.03,0.00021369,2]
[330545997,1719561159908,-169.23724934,0.00021369,2]
[330545998,1719561159917,-1820.37,0.00021369,2]
[330545999,1719561159927,-2472.64,0.00021369,2]
[330546000,1719561159938,-705.74,0.00021369,2]
[330546001,1719561159947,-3381.95,0.00021369,2]
[330546002,1719561159958,-5070.88,0.00021369,2]
[330546003,1719561159968,-864.54,0.00021369,2]
[330546004,1719561159978,-2034.01,0.00021369,2]
[330546005,1719561159988,-1227.23,0.00021369,2]
[330546006,1719561159999,-1396.45,0.00021369,2]
[330546007,1719561160010,-2105.9,0.00021369,2]
[330546008,1719561160021,-1285.82,0.00021369,2]
[330546009,1719561160032,-1675.94,0.00021369,2]
[330546010,1719561160042,-500.0,0.00021369,2]
[330546011,1719561160054,-536.38,0.00021369,2]
[330546012,1719561160066,-500.0,0.00021369,2]
[330546013,1719561160078,-1080.4,0.00021369,2]
[330546014,1719561160089,-1091.76,0.00021369,2]
[330546015,1719561160099,-1135.8,0.00021369,2]
[330546016,1719561160111,-3936.72,0.00021369,2]
[330546017,1719561160121,-500.0,0.00021369,2]
[330546018,1719561160132,-500.0,0.00021369,2]
[330546019,1719561160142,-500.0,0.00021369,2]
[330546020,1719561160152,-4738.44,0.00021369,2]
[330546021,1719561160163,-500.0,0.00021369,2]
[330546022,1719561160173,-614.98,0.00021369,2]
[330546023,1719561160183,-1651.05,0.00021369,2]
[330546024,1719561160194,-1956.77,0.00021369,2]
[330546025,1719561160204,-933.08,0.00021369,2]
[330546026,1719561160214,-500.0,0.00021369,2]
[330546027,1719561160225,-2667.99,0.00021369,2]
[330546028,1719561160235,-6250.57,0.00021369,2]
[330546029,1719561160246,-1063.1,0.00021369,2]
[330546030,1719561160256,-823.18,0.00021369,2]
[330546031,1719561160267,-1293.08,0.00021369,2]
[330546032,1719561160277,-500.0,0.00021369,2]
[330546033,1719561160287,-4756.33,0.00021369,2]
[330546034,1719561160297,-5103.03,0.00021369,2]
[330546035,1719561160307,-721.31,0.00021369,2]
[330546036,1719561160318,-1439.83,0.00021369,2]
[330546037,1719561160329,-770.64,0.00021369,2]
[330546038,1719561160339,-2458.51,0.00021369,2]
[330546039,1719561160349,-500.0,0.00021369,2]
[330546040,1719561160359,-500.0,0.00021369,2]
[330546041,1719561160368,-1211.11,0.00021369,2]
[330546042,1719561160379,-552.09,0.00021369,2]
[330546043,1719561160389,-3750.61,0.00021369,2]
[330546044,1719561160399,-500.0,0.00021369,2]
[330546045,1719561160409,-500.0,0.00021369,2]
[330546046,1719561160419,-2098.22,0.00021369,2]
[330546047,1719561160431,-500.0,0.00021369,2]
[330546048,1719561160442,-754.56,0.00021369,2]
[330546049,1719561160454,-4491.42,0.00021369,2]
[330546050,1719561160464,-2020.73,0.00021369,2]
[330546051,1719561160474,-500.0,0.00021369,2]
[330546052,1719561160485,-2438.38,0.00021369,2]
[330546053,1719561160494,-1992.71,0.00021369,2]
[330546054,1719561160505,-781.62,0.00021369,2]
[330546055,1719561160516,-500.0,0.00021369,2]
[330546056,1719561160527,-1432.47,0.00021369,2]
[330546057,1719561160537,-500.0,0.00021369,2]
[330546058,1719561160547,-1548.3,0.00021369,2]
[330546059,1719561160556,-885.59,0.00021369,2]
[330546060,1719561160567,-5534.77,0.00021369,2]
[330546061,1719561160578,-163.11239909,0.00021369,2]
[330546062,1719561160588,-306.02955951,0.00021369,2]
[330546063,1719561160599,-1994.67,0.00021369,2]
[330546064,1719561160610,-1403.1,0.00021369,2]
[330546065,1719561160620,-4164.92,0.00021369,2]
[330546066,1719561160631,-814.93,0.00021369,2]
[330546067,1719561160642,-2686.24,0.00021369,2]
[330546068,1719561160652,-526.81,0.00021369,2]
[330546069,1719561160663,-3931.36,0.00021369,2]
[330546070,1719561160674,-500.0,0.00021369,2]
[330546071,1719561160684,-1627.14,0.00021369,2]
[330546072,1719561160695,-500.0,0.00021369,2]
[330546073,1719561160706,-500.0,0.00021369,2]
[330546074,1719561160717,-1739.9,0.00021369,2]
[330546075,1719561160728,-1201.25,0.00021369,2]
[330546076,1719561160739,-823.37,0.00021369,2]
[330546077,1719561160749,-1677.95,0.00021369,2]
[330546078,1719561160759,-500.0,0.00021369,2]
[330546079,1719561160769,-2423.48,0.00021369,2]
[330546080,1719561160780,-4579.29,0.00021369,2]
[330546081,1719561160790,-564.34,0.00021369,2]
[330546082,1719561160800,-500.0,0.00021369,2]
[330546083,1719561160810,-500.0,0.00021369,2]
[330546084,1719561160820,-500.0,0.00021369,2]
[330546085,1719561160830,-3220.4,0.00021369,2]
[330546086,1719561160840,-4356.08,0.00021369,2]
[330546087,1719561160851,-500.0,0.00021369,2]
[330546088,1719561160864,-10448.28,0.00021369,2]
[330546089,1719561160874,-2461.19,0.00021369,2]
[330546090,1719561160884,-575.39,0.00021369,2]
[330546091,1719561160895,-848.23,0.00021369,2]
[330546092,1719561160906,-571.54,0.00021369,2]
[330546093,1719561161261,-500.0,0.00021369,2]
[330546094,1719561161272,-1688.67,0.00021369,2]
[330546095,1719561161282,-4745.96,0.00021369,2]
[330546096,1719561161293,-500.0,0.00021369,2]
[330546097,1719561161307,-662.7,0.00021369,2]
[330546098,1719561161316,-1372.06,0.00021369,2]
[330546099,1719561161326,-504.88,0.00021369,2]
[330546100,1719561161335,-500.0,0.00021369,2]
[330546101,1719561161345,-1056.34,0.00021369,2]
[330546102,1719561161355,-606.3,0.00021369,2]
[330546103,1719561161365,-1074.08,0.00021369,2]
[330546104,1719561161374,-2441.39,0.00021369,2]
[330546105,1719561161384,-2465.9,0.00021369,2]
[330546106,1719561161394,-1390.74,0.00021369,2]
[330546107,1719561161403,-1781.97,0.00021369,2]
[330546108,1719561161413,-935.7,0.00021369,2]
[330546109,1719561161422,-500.0,0.00021369,2]
[330546110,1719561161432,-500.0,0.00021369,2]
[330546111,1719561161443,-500.0,0.00021369,2]
[330546112,1719561161453,-525.03,0.00021369,2]
[330546113,1719561161463,-3285.77,0.00021369,2]
[330546114,1719561161473,-668.57,0.00021369,2]
[330546115,1719561161483,-500.0,0.00021369,2]
[330546116,1719561161492,-1463.5,0.00021369,2]
[330546117,1719561161502,-1552.82,0.00021369,2]
[330546118,1719561161512,-1287.58,0.00021369,2]
[330546119,1719561161522,-1253.08,0.00021369,2]
[330546120,1719561161532,-500.0,0.00021369,2]
[330546121,1719561161542,-1221.61,0.00021369,2]
[330546122,1719561161554,-500.0,0.00021369,2]
[330546123,1719561161564,-500.0,0.00021369,2]
[330546124,1719561161573,-2098.47,0.00021369,2]
[330546125,1719561161582,-861.59,0.00021369,2]
[330546126,1719561161591,-1171.21,0.00021369,2]
[330546127,1719561161601,-500.0,0.00021369,2]
[330546128,1719561161610,-3809.85,0.00021369,2]
[330546129,1719561161621,-1526.48,0.00021369,2]
[330546130,1719561161630,-1044.61,0.00021369,2]
[330546131,1719561161640,-500.0,0.00021369,2]
[330546132,1719561161650,-2191.37,0.00021369,2]
[330546133,1719561161660,-500.0,0.00021369,2]
[330546134,1719561161671,-2330.29,0.00021369,2]
[330546135,1719561161680,-1251.54,0.00021369,2]
[330546136,1719561161690,-500.0,0.00021369,2]
[330546137,1719561161700,-1197.85,0.00021369,2]
[330546138,1719561161710,-3118.59,0.00021369,2]
[330546139,1719561161719,-532.97,0.00021369,2]
[330546140,1719561161729,-2052.11,0.00021369,2]
[330546141,1719561161739,-500.0,0.00021369,2]
[330546142,1719561161748,-5026.87,0.00021369,2]
[330546143,1719561161758,-1566.0,0.00021369,2]
[330546144,1719561161769,-873.76,0.00021369,2]
[330546145,1719561161778,-3596.87,0.00021369,2]
[330546146,1719561161787,-1698.0,0.00021369,2]
[330546147,1719561161799,-1543.01,0.00021369,2]
[330546148,1719561161808,-3389.93,0.00021369,2]
[330546149,1719561161818,-2335.36,0.00021369,2]
[330546150,1719561161831,-648.91,0.00021369,2]
[330546151,1719561161841,-2869.58,0.00021369,2]
[330546152,1719561161852,-595.54,0.00021369,2]
[330546153,1719561161865,-762.46,0.00021369,2]
[330546154,1719561161875,-638.08,0.00021369,2]
[330546155,1719561161885,-978.5,0.00021369,2]
[330546156,1719561161895,-526.25,0.00021369,2]
[330546157,1719561161907,-500.0,0.00021369,2]
[330546158,1719561161916,-780.19,0.00021369,2]
[330546159,1719561161926,-855.45,0.00021369,2]
[330546160,1719561161937,-1117.63214506,0.00021369,2]
[330546161,1719561161948,-1166.4,0.00021369,2]
[330546162,1719561161957,-779.68,0.00021369,2]
[330546163,1719561161966,-1703.63,0.00021369,2]
[330546164,1719561161975,-12184.84,0.00021369,2]
[330546165,1719561161985,-783.91,0.00021369,2]
[330546166,1719561161995,-4108.34,0.00021369,2]
[330546167,1719561162005,-655.17,0.00021369,2]
[330546168,1719561162015,-577.58,0.00021369,2]
[330546169,1719561162026,-500.0,0.00021369,2]
[330546170,1719561162035,-1494.47,0.00021369,2]
[330546171,1719561162044,-1812.77,0.00021369,2]
[330546172,1719561162059,-1434.26,0.00021369,2]
[330546173,1719561162069,-803.64,0.00021369,2]
[330546174,1719561162078,-500.0,0.00021369,2]
[330546175,1719561162088,-8612.7,0.00021369,2]
[330546176,1719561162097,-500.0,0.00021369,2]
[330546177,1719561162108,-500.0,0.00021369,2]
[330546178,1719561162118,-2570.43,0.00021369,2]
[330546179,1719561162129,-2233.3,0.00021369,2]
[330546180,1719561162139,-564.9,0.00021369,2]
[330546181,1719561162148,-833.81,0.00021369,2]
[330546182,1719561162158,-7571.09,0.00021369,2]
[330546183,1719561162168,-651.19,0.00021369,2]
[330546184,1719561162177,-990.66,0.00021369,2]
[330546185,1719561162187,-1393.07,0.00021369,2]
[330546186,1719561162197,-795.17,0.00021369,2]
[330546187,1719561162206,-500.0,0.00021369,2]
[330546188,1719561162216,-1571.82,0.00021369,2]
[330546189,1719561162226,-803.77,0.00021369,2]
[330546190,1719561162236,-2442.19,0.00021369,2]
[330546191,1719561162246,-500.0,0.00021369,2]
[330546192,1719561162255,-500.0,0.00021369,2]
[330546193,1719561162265,-500.0,0.00021369,2]
[330546194,1719561162275,-500.0,0.00021369,2]
[330546195,1719561162285,-1017.76,0.00021369,2]
[330546196,1719561162294,-985.98,0.00021369,2]
[330546197,1719561162306,-3900.49,0.00021369,2]
[330546198,1719561162315,-623.56,0.00021369,2]
[330546199,1719561162324,-510.44,0.00021369,2]
[330546200,1719561162333,-3626.35,0.00021369,2]
[330546201,1719561162342,-3571.61,0.00021369,2]
[330546202,1719561162352,-673.35,0.00021369,2]
[330546203,1719561162361,-974.54,0.00021369,2]
[330546204,1719561162370,-500.0,0.00021369,2]
[330546205,1719561162379,-914.91,0.00021369,2]
[330546206,1719561162389,-4977.96,0.00021369,2]
[330546207,1719561162398,-1975.34,0.00021369,2]
[330546208,1719561162408,-668.22,0.00021369,2]
[330546209,1719561162418,-4103.33,0.00021369,2]
[330546210,1719561162427,-929.98,0.00021369,2]
[330546211,1719561162437,-490.12091977,0.00021369,2]
[330546212,1719561162446,-690.61,0.00021369,2]
[330546213,1719561162455,-2114.11,0.00021369,2]
[330546214,1719561162464,-1444.66,0.00021369,2]
[330546215,1719561162474,-1628.46,0.00021369,2]
[330546216,1719561162484,-933.49,0.00021369,2]
[330546217,1719561162494,-2888.25,0.00021369,2]
[330546218,1719561162503,-500.0,0.00021369,2]
[330546219,1719561162512,-1270.72,0.00021369,2]
[330546220,1719561162522,-3537.73,0.00021369,2]
[330546221,1719561162531,-1988.26,0.00021369,2]
[330546222,1719561162540,-646.8,0.00021369,2]
[330546223,1719561162552,-3537.83,0.00021369,2]
[330546224,1719561162561,-1016.96,0.00021369,2]
[330546225,1719561162570,-4400.98,0.00021369,2]
[330546226,1719561162579,-500.0,0.00021369,2]
[330546227,1719561162588,-500.0,0.00021369,2]
[330546228,1719561162597,-588.73,0.00021369,2]
[330546229,1719561162607,-768.32,0.00021369,2]
[330546230,1719561162616,-1070.33,0.00021369,2]
[330546231,1719561162625,-743.46,0.00021369,2]
[330546232,1719561162634,-6545.79,0.00021369,2]